bitfinex-derivatives/quotes_BNBF0:USTF0_20250331
["timestamp","ask_amount","ask_price","bid_price","bid_amount"]
[1743384858291,3.94350289,603.19,602.18,0.3321266]
[1743384858592,1.43274396,603.18,602.18,0.3321266]
[1743384858785,3.04656714,603.19,602.18,0.3321266]
[1743384859191,6.06082974,603.29,602.18,0.3321266]
[1743384859391,6.06082974,603.28,602.18,0.3321266]
[1743384859591,1.756,603.32,602.18,0.3321266]
[1743384859592,5.3776555,603.27,602.18,0.3321266]
[1743384859792,2.33108836,603.26,602.18,0.3321266]
[1743384859987,3.04656714,603.27,602.18,0.3321266]
[1743384860592,1.16874835,603.26,602.18,0.3321266]
[1743384861092,1.16874835,603.25,602.18,0.3321266]
[1743384861288,3.50099437,603.25,602.18,0.3321266]
[1743384861593,1.43413051,603.24,602.18,0.3321266]
[1743384861892,1.16874835,603.24,602.18,0.3321266]
[1743384862092,4.93512488,603.24,602.18,0.3321266]
[1743384862393,4.89771652,603.23,602.18,0.3321266]
[1743384862692,3.50099437,603.22,602.18,0.3321266]
[1743384862892,2.33108836,603.21,602.18,0.3321266]
[1743384863094,2.33108836,603.2,602.18,0.3321266]
[1743384863292,2.33108836,603.19,602.18,0.3321266]
[1743384863489,2.33108836,603.18,602.18,0.3321266]
[1743384863689,2.33108836,603.17,602.18,0.3321266]
[1743384863886,2.33108836,603.16,602.18,0.3321266]
[1743384864087,7.22996254,603.16,602.18,0.3321266]
[1743384864291,6.06121419,603.15,602.18,0.3321266]
[1743384864492,6.06121419,603.14,602.18,0.3321266]
[1743384864692,6.06121419,603.13,602.18,0.3321266]
[1743384864892,2.33224602,603.12,602.18,0.3321266]
[1743384865092,3.94352499,603.12,602.18,0.3321266]
[1743384865292,3.72896817,603.11,602.18,0.3321266]
[1743384865493,6.06121419,603.11,602.18,0.3321266]
[1743384865695,0.89695785,603.1,602.18,0.3321266]
[1743384865886,3.04656714,603.1,602.18,0.3321266]
[1743384866087,6.81309421,603.1,602.18,0.3321266]
[1743384866291,2.33108836,603.09,602.18,0.3321266]
[1743384866593,3.49983671,603.09,602.18,0.3321266]
[1743384866794,2.33108836,603.08,602.18,0.3321266]
[1743384866991,1.16874835,603.09,602.18,0.3321266]
[1743384867498,1.16874835,603.08,602.18,0.3321266]
[1743384868394,1.16874835,603.07,602.18,0.3321266]
[1743384869193,1.16874835,603.06,602.18,0.3321266]
[1743384869998,1.16874835,603.05,602.18,0.3321266]
[1743384870597,2.33108836,603.09,602.18,0.3321266]
[1743384870798,3.49983671,603.11,602.18,0.3321266]
[1743384871103,2.33108836,603.1,602.18,0.3321266]
[1743384871304,1.16874835,603.11,602.18,0.3321266]
[1743384871501,2.33108836,603.13,602.18,0.3321266]
[1743384871700,2.33108836,603.28,602.18,0.3321266]
[1743384871905,3.49983671,603.27,602.18,0.3321266]
[1743384872200,2.33108836,603.26,602.18,0.3321266]
[1743384872404,1.16874835,603.25,602.18,0.3321266]
[1743384872806,7.72935546,603.25,602.18,0.3321266]
[1743384873006,7.72935546,603.24,602.18,0.3321266]
[1743384873206,6.5606148,603.23,602.18,0.3321266]
[1743384873407,3.1353967,603.22,602.18,0.3321266]
[1743384873606,1.4735691,603.21,602.18,0.3321266]
[1743384873807,0.30482075,603.2,602.18,0.3321266]
[1743384874002,1.16874835,603.2,602.18,0.3321266]
[1743384874207,7.72936315,603.2,602.18,0.3321266]
[1743384874405,6.5606148,603.19,602.18,0.3321266]
[1743384874606,2.33293603,603.18,602.18,0.3321266]
[1743384874905,7.67356384,603.18,602.18,0.3321266]
[1743384875105,6.07253932,603.17,602.18,0.3321266]
[1743384875305,2.33559204,603.16,602.18,0.3321266]
[1743384875505,6.0741644,603.17,602.18,0.3321266]
[1743384875703,0.89870467,603.16,602.18,0.3321266]
[1743384875902,6.07417227,603.17,602.18,0.3321266]
[1743384876103,3.94527181,603.16,602.18,0.3321266]
[1743384876302,1.43688737,603.15,602.18,0.3321266]
[1743384876502,2.33559204,603.15,602.18,0.3321266]
[1743384877204,0.89949976,603.15,602.18,0.3321266]
[1743384877399,2.06824811,603.28,602.18,0.3321266]
[1743384877601,1.16874835,603.28,602.18,0.3321266]
[1743384878006,7.74690339,603.28,602.18,0.3321266]
[1743384878206,7.24926493,603.27,602.18,0.3321266]
[1743384878407,9.12708372,603.26,602.18,0.3321266]
[1743384878607,6.08051658,603.25,602.18,0.3321266]
[1743384878802,2.33935916,603.24,602.18,0.3321266]
[1743384879003,0.89949976,603.24,602.18,0.3321266]
[1743384879207,3.9460669,603.24,602.18,0.3321266]
[1743384879409,6.0839482,603.23,602.18,0.3321266]
[1743384879707,2.34279078,603.22,602.18,0.3321266]
[1743384879908,6.82826462,603.22,602.18,0.3321266]
[1743384880107,6.0839482,603.21,602.18,0.3321266]
[1743384880307,2.34279078,603.2,602.18,0.3321266]
[1743384880508,3.94764052,603.2,602.18,0.3321266]
[1743384880708,3.74115742,603.19,602.18,0.3321266]
[1743384880910,6.07694503,603.19,602.18,0.3321266]
[1743384881106,2.34279078,603.18,602.18,0.3321266]
[1743384881311,0.90107338,603.18,602.18,0.3321266]
[1743384881508,3.94764052,603.18,602.18,0.3321266]
[1743384881704,2.30225072,603.17,602.18,0.3321266]
[1743384881904,4.6450415,603.17,602.18,0.3321266]
[1743384882309,3.04656714,603.16,602.18,0.3321266]
[1743384882509,7.69160864,603.16,602.18,0.3321266]
[1743384882711,4.6450415,603.15,602.18,0.3321266]
[1743384882904,5.81378985,603.15,602.18,0.3321266]
[1743384883109,2.34279078,603.14,602.18,0.3321266]
[1743384883310,0.90263695,603.14,602.18,0.3321266]
[1743384883510,3.94920409,603.14,602.18,0.3321266]
[1743384883704,2.30225072,603.13,602.18,0.3321266]
[1743384883908,1.16874835,603.12,602.18,0.3321266]
[1743384884109,5.81785514,603.12,602.18,0.3321266]
[1743384884303,3.51560442,603.11,602.18,0.3321266]
[1743384884506,5.81785514,603.11,602.18,0.3321266]
[1743384884703,2.34685607,603.1,602.18,0.3321266]
[1743384884908,3.94920409,603.1,602.18,0.3321266]
[1743384885107,3.20488767,603.09,602.18,0.3321266]
[1743384885310,3.20488767,603.08,602.18,0.3321266]
[1743384885511,3.20488767,603.07,602.18,0.3321266]
[1743384885711,0.90263695,603.06,602.18,0.3321266]
[1743384885905,0.90263695,603.05,602.18,0.3321266]
[1743384886110,0.90263695,603.04,602.18,0.3321266]
[1743384886411,4.64910679,603.03,602.18,0.3321266]
[1743384886605,5.1468505,603.02,602.18,0.3321266]
[1743384886809,5.1468505,603.01,602.18,0.3321266]
[1743384887008,5.1468505,603.0,602.18,0.3321266]
[1743384887207,5.1468505,602.99,602.18,0.3321266]
[1743384887410,0.90263695,602.98,602.18,0.3321266]
[1743384887606,0.90263695,602.97,602.18,0.3321266]
[1743384887811,0.90263695,602.96,602.18,0.3321266]
[1743384888013,0.90263695,602.95,602.18,0.3321266]
[1743384888213,0.90263695,602.94,602.18,0.3321266]
[1743384888412,0.90263695,602.93,602.18,0.3321266]
[1743384888613,0.90263695,602.92,602.18,0.3321266]
[1743384888812,0.90263695,602.91,602.18,0.3321266]
[1743384889011,0.90263695,602.9,602.18,0.3321266]
[1743384889209,0.90292033,602.89,602.18,0.3321266]
[1743384889411,0.90292033,602.88,602.18,0.3321266]
[1743384889709,1.16874835,602.88,602.18,0.3321266]
[1743384890117,2.07166868,602.87,601.97,0.28882424]
[1743384890307,0.90292033,602.86,600.61,2.5510302]
[1743384890512,0.90292033,602.85,600.61,2.5510302]
[1743384890813,3.94948747,602.84,600.72,0.33293381]
[1743384891013,4.64984358,602.83,600.72,0.33293381]
[1743384891214,0.90292033,602.82,600.72,0.33293381]
[1743384891411,0.90292033,602.81,601.04,2.5510302]
[1743384891614,0.90292033,602.8,601.06,0.33274548]
[1743384891810,0.90292033,602.79,601.06,0.33274548]
[1743384892013,0.90292033,602.78,601.06,0.33274548]
[1743384892210,0.90292033,602.77,601.06,0.33274548]
[1743384892915,1.16874835,602.76,601.06,0.33274548]
[1743384893112,3.51263465,602.76,601.06,0.33274548]
[1743384893309,2.3438863,602.75,601.06,0.33274548]
[1743384893514,1.16874835,602.75,601.06,0.33274548]
[1743384893715,4.95581712,602.75,601.06,0.33274548]
[1743384893913,3.74893287,602.74,601.06,0.33274548]
[1743384894116,5.45386012,602.74,601.06,0.33274548]
[1743384894309,3.74893287,602.73,601.06,0.33274548]
[1743384894511,6.09410438,602.73,601.06,0.33274548]
[1743384894709,6.09410438,602.72,601.06,0.33274548]
[1743384894917,6.09410438,602.71,601.06,0.33274548]
[1743384895217,0.90198904,602.7,601.06,0.33274548]
[1743384895417,4.65092191,602.71,601.06,0.33274548]
[1743384895613,3.04656714,602.72,601.06,0.33274548]
[1743384895614,2.3438863,602.7,601.06,0.33274548]
[1743384895818,3.04656714,602.7,601.06,0.33274548]
[1743384896019,9.13595445,602.7,601.06,0.33274548]
[1743384896221,2.3438863,602.69,601.06,0.33274548]
[1743384896416,5.94814181,602.69,601.06,0.33274548]
[1743384896619,2.3438863,602.68,601.06,0.33274548]
[1743384896814,3.04656714,602.68,601.06,0.33274548]
[1743384897016,5.39045344,602.68,601.06,0.33274548]
[1743384897217,2.3438863,602.67,601.06,0.33274548]
[1743384897421,3.51105552,602.68,601.06,0.33274548]
[1743384897621,1.44189726,602.67,601.06,0.33274548]
[1743384897819,4.64632271,602.67,601.06,0.33274548]
[1743384898023,3.74433367,602.66,601.06,0.33274548]
[1743384898218,2.07073739,602.66,601.06,0.33274548]
[1743384898418,3.51105552,602.66,601.06,0.33274548]
[1743384898619,7.25538919,602.66,601.06,0.33274548]
[1743384898823,7.25538919,602.65,601.06,0.33274548]
[1743384899124,6.08664084,602.64,601.07,2.5510302]
[1743384899327,2.3438863,602.63,601.09,0.33272887]
[1743384899623,1.44189726,602.63,601.09,0.33272887]
[1743384899923,2.61064561,602.68,601.09,0.33272887]
[1743384900219,1.16874835,602.68,601.09,0.33272887]
[1743384900415,1.301,602.69,601.09,0.33272887]
[1743384903328,0.30505635,602.68,601.09,0.33272887]
[1743384903930,1.301,602.69,601.09,0.33272887]
[1743384914027,3.63509142,602.69,601.09,0.33272887]
[1743384914224,1.43603358,602.68,601.09,0.33272887]
[1743384914427,3.63525805,602.69,601.09,0.33272887]
[1743384914631,1.17356736,602.68,601.09,0.33272887]
[1743384914828,3.50782541,602.68,601.09,0.33272887]
[1743384916132,1.17356736,602.68,601.09,0.33272887]
[1743384916927,1.301,602.69,601.09,0.33272887]
[1743384925243,1.301,602.69,601.24,2.5510302]
[1743384925445,1.301,602.69,601.26,0.3326348]
[1743384928948,2.19952608,602.69,601.26,0.3326348]
[1743384929142,3.63701586,602.69,601.26,0.3326348]
[1743384929641,2.33601586,602.68,601.26,0.3326348]
[1743384930143,1.301,602.69,601.26,0.3326348]
[1743384930346,1.17356736,602.68,601.26,0.3326348]
[1743384931248,1.17356736,602.67,601.26,0.3326348]
[1743384932149,1.301,602.69,601.26,0.3326348]
[1743384933349,0.33185106,602.68,601.26,0.3326348]
[1743384933555,0.3051638,602.67,601.26,0.3326348]
[1743384933749,0.33186207,602.66,601.26,0.3326348]
[1743384933952,0.3051638,602.65,601.26,0.3326348]
[1743384934149,0.33187309,602.64,601.26,0.3326348]
[1743384934351,0.3051638,602.63,601.26,0.3326348]
[1743384934752,0.3318841,602.62,601.26,0.3326348]
[1743384934955,0.3051638,602.61,601.26,0.3326348]
[1743384936157,0.30519782,602.6,601.26,0.3326348]
[1743384936357,0.28908457,602.6,601.26,0.3326348]
[1743384936556,0.30519782,602.59,601.26,0.3326348]
[1743384937556,2.3381162,602.59,601.26,0.3326348]
[1743384937752,4.63938879,602.6,601.26,0.3326348]
[1743384937949,3.95133709,602.59,601.26,0.3326348]
[1743384938151,3.73932684,602.58,601.26,0.3326348]
[1743384938357,6.07902763,602.58,601.26,0.3326348]
[1743384938556,2.33970079,602.57,601.26,0.3326348]
[1743384938757,0.90006195,602.57,601.26,0.3326348]
[1743384939053,1.17356736,602.56,601.26,0.3326348]
[1743384939453,1.17356736,602.55,601.26,0.3326348]
[1743384939658,4.9513224,602.55,601.26,0.3326348]
[1743384939858,3.73932684,602.54,601.26,0.3326348]
[1743384940054,6.07902763,602.54,601.26,0.3326348]
[1743384940251,7.75086554,602.53,601.26,0.3326348]
[1743384940454,6.07902763,602.52,601.26,0.3326348]
[1743384940752,6.07902763,602.51,601.26,0.3326348]
[1743384940958,6.07902763,602.5,601.26,0.3326348]
[1743384941155,6.07902763,602.49,601.26,0.3326348]
[1743384941354,0.90006195,602.48,601.26,0.3326348]
[1743384941555,6.08038585,602.49,601.26,0.3326348]
[1743384941859,5.39233415,602.48,601.26,0.3326348]
[1743384942059,3.73932684,602.47,601.26,0.3326348]
[1743384942260,2.3381162,602.47,601.26,0.3326348]
[1743384943256,0.90006195,602.6,601.26,0.3326348]
[1743384943454,1.17356736,602.61,601.26,0.3326348]
[1743384943856,1.17356736,602.59,601.26,0.3326348]
[1743384944259,4.95702198,602.59,601.26,0.3326348]
[1743384944455,7.26176291,602.58,601.26,0.3326348]
[1743384944659,6.08819555,602.57,601.26,0.3326348]
[1743384944857,6.08819555,602.56,601.26,0.3326348]
[1743384945060,2.34299154,602.55,601.26,0.3326348]
[1743384945261,0.90115059,602.54,601.26,0.3326348]
[1743384945557,1.17356736,602.54,601.26,0.3326348]
[1743384945756,3.51749326,602.54,601.26,0.3326348]
[1743384946057,1.44108585,602.53,601.26,0.3326348]
[1743384946259,4.95857911,602.53,601.26,0.3326348]
[1743384946461,3.74682321,602.52,601.26,0.3326348]
[1743384946661,3.78501175,602.52,601.26,0.3326348]
[1743384946957,3.51616317,602.51,601.26,0.3326348]
[1743384947165,2.34259581,602.5,601.26,0.3326348]
[1743384947366,1.17356736,602.51,601.26,0.3326348]
[1743384947562,1.17356736,602.5,601.26,0.3326348]
[1743384948266,1.87770778,602.57,601.26,0.3326348]
[1743384948267,9.14365343,602.53,601.26,0.3326348]
[1743384948467,2.34259581,602.52,601.26,0.3326348]
[1743384948970,3.51616317,602.52,601.26,0.3326348]
[1743384949170,2.34259581,602.51,601.26,0.3326348]
[1743384949469,6.0923685,602.6,601.26,0.3326348]
[1743384949770,6.0923685,602.59,601.26,0.3326348]
[1743384950070,6.09329008,602.58,601.26,0.3326348]
[1743384950270,2.34548054,602.57,601.26,0.3326348]
[1743384950463,2.77981568,602.57,601.26,0.3326348]
[1743384950667,9.14456522,602.57,601.26,0.3326348]
[1743384950867,2.34319375,602.56,601.26,0.3326348]
[1743384951169,3.51676111,602.56,601.26,0.3326348]
[1743384951370,2.34319375,602.55,601.26,0.3326348]
[1743384951566,1.17356736,602.56,601.26,0.3326348]
[1743384951870,2.34319375,602.59,601.26,0.3326348]
[1743384952269,3.95338304,602.59,601.26,0.3326348]
[1743384952569,2.34319375,602.58,601.26,0.3326348]
[1743384952967,1.17356736,602.57,601.26,0.3326348]
[1743384953670,0.3318841,602.62,601.26,0.3326348]
[1743384954466,1.55,602.61,601.26,0.3326348]
[1743384956570,7.64453139,602.61,601.26,0.3326348]
[1743384956872,5.39446889,602.6,601.26,0.3326348]
[1743384957071,2.34319375,602.59,601.26,0.3326348]
[1743384957273,0.9021079,602.59,601.26,0.3326348]
[1743384957467,9.14652047,602.6,601.26,0.3326348]
[1743384957670,4.65133354,602.59,601.26,0.3326348]
[1743384957869,0.90244809,602.58,601.26,0.3326348]
[1743384958071,3.74922564,602.59,601.26,0.3326348]
[1743384958072,6.0956758,602.59,601.26,0.3326348]
[1743384958268,5.39768473,602.58,601.26,0.3326348]
[1743384958571,3.74926621,602.57,601.26,0.3326348]
[1743384958770,7.26924316,602.57,601.26,0.3326348]
[1743384958968,6.0956758,602.56,601.26,0.3326348]
[1743384959274,6.0956758,602.55,601.26,0.3326348]
[1743384959474,6.0956758,602.54,601.26,0.3326348]
[1743384959673,6.0956758,602.53,601.26,0.3326348]
[1743384959870,6.0956758,602.52,601.26,0.3326348]
[1743384960070,6.0956758,602.51,601.26,0.3326348]
[1743384960274,6.0956758,602.5,601.26,0.3326348]
[1743384960471,6.0956758,602.49,601.26,0.3326348]
[1743384960675,2.34353394,602.48,601.26,0.3326348]
[1743384960978,2.34353394,602.51,601.26,0.3326348]
[1743384961771,3.5171013,602.51,601.26,0.3326348]
[1743384962071,2.34353394,602.5,601.26,0.3326348]
[1743384962275,0.90244809,602.5,601.26,0.3326348]
[1743384962477,6.09550395,602.57,601.26,0.3326348]
[1743384962676,6.09550395,602.56,601.26,0.3326348]
[1743384962872,6.09550395,602.55,601.26,0.3326348]
[1743384963072,2.34633919,602.54,601.26,0.3326348]
[1743384963277,0.90244809,602.54,601.26,0.3326348]
[1743384963474,1.17356736,602.53,601.26,0.3326348]
[1743384963873,7.26907131,602.53,601.26,0.3326348]
[1743384964076,7.26957518,602.52,601.26,0.3326348]
[1743384964277,6.09600782,602.51,601.26,0.3326348]
[1743384964579,2.34353394,602.5,601.26,0.3326348]
[1743384964773,0.90244809,602.51,601.26,0.3326348]
[1743384964972,2.61762031,602.52,601.26,0.3326348]
[1743384965174,3.05127514,602.5,601.26,0.3326348]
[1743384965572,9.14717931,602.5,601.26,0.3326348]
[1743384965776,7.26947153,602.49,601.26,0.3326348]
[1743384965976,6.09590417,602.48,601.26,0.3326348]
[1743384966173,6.09590417,602.47,601.26,0.3326348]
[1743384966373,6.09590417,602.46,601.26,0.3326348]
[1743384966577,6.09590417,602.45,601.26,0.3326348]
[1743384966777,5.39480908,602.44,601.26,0.3326348]
[1743384966980,2.34353394,602.43,601.26,0.3326348]
[1743384967180,2.34521572,602.43,601.26,0.3326348]
[1743384967379,1.44276763,602.43,601.26,0.3326348]
[1743384967581,1.17356736,602.42,601.26,0.3326348]
[1743384968479,1.55,602.61,601.26,0.3326348]
[1743384968480,6.09793196,602.56,601.26,0.3326348]
[1743384968780,6.09793196,602.55,601.26,0.3326348]
[1743384968981,6.09793196,602.54,601.26,0.3326348]
[1743384969280,9.1492071,602.53,601.26,0.3326348]
[1743384969480,2.34535727,602.52,601.26,0.3326348]
[1743384969682,5.39663241,602.52,601.26,0.3326348]
[1743384969982,2.34535727,602.51,601.26,0.3326348]
[1743384970481,6.09795508,602.59,601.26,0.3326348]
[1743384970783,2.34674135,602.58,601.26,0.3326348]
[1743384970979,3.95386478,602.58,601.26,0.3326348]
[1743384971175,3.75121373,602.57,601.26,0.3326348]
[1743384971378,6.59620818,602.57,601.26,0.3326348]
[1743384971580,2.84499445,602.56,601.26,0.3326348]
[1743384971781,2.34535727,602.55,601.26,0.3326348]
[1743384972275,2.06379958,602.54,601.26,0.3326348]
[1743384972477,2.98253028,602.53,601.26,0.3326348]
[1743384972681,2.98253579,602.52,601.26,0.3326348]
[1743384972881,2.9825413,602.51,601.26,0.3326348]
[1743384973084,2.34535727,602.5,601.26,0.3326348]
[1743384973385,0.63719959,602.49,601.26,0.3326348]
[1743384973585,0.6372051,602.48,601.26,0.3326348]
[1743384973785,1.50552858,602.48,601.26,0.3326348]
[1743384974386,1.47881468,602.47,601.26,0.3326348]
[1743384974684,7.76977554,602.47,601.26,0.3326348]
[1743384974884,8.07501979,602.46,601.26,0.3326348]
[1743384975084,6.59573261,602.45,601.26,0.3326348]
[1743384975285,6.59573261,602.44,601.26,0.3326348]
[1743384975580,6.59573261,602.43,601.26,0.3326348]
[1743384975780,6.59573261,602.42,601.26,0.3326348]
[1743384975986,6.59573261,602.41,601.26,0.3326348]
[1743384976287,6.59573261,602.4,601.26,0.3326348]
[1743384976483,2.84451888,602.39,601.26,0.3326348]
[1743384976684,6.59573261,602.39,601.26,0.3326348]
[1743384976882,2.84451888,602.38,601.26,0.3326348]
[1743384977078,0.90236995,602.38,601.26,0.3326348]
[1743384977480,1.17356736,602.37,601.26,0.3326348]
[1743384977985,7.76929997,602.37,601.26,0.3326348]
[1743384978186,7.76929997,602.36,601.26,0.3326348]
[1743384978486,9.64702978,602.35,601.26,0.3326348]
[1743384978786,6.0973756,602.34,601.26,0.3326348]
[1743384978987,2.34616187,602.33,601.26,0.3326348]
[1743384979189,5.39641272,602.33,601.26,0.3326348]
[1743384979387,6.59579845,602.32,601.26,0.3326348]
[1743384979586,2.34616187,602.31,601.26,0.3326348]
[1743384979783,0.90236995,602.31,601.26,0.3326348]
[1743384979983,1.17356736,602.3,601.26,0.3326348]
[1743384980488,7.27094296,602.3,601.26,0.3326348]
[1743384980689,6.0973756,602.29,601.26,0.3326348]
[1743384980886,6.0973756,602.28,601.26,0.3326348]
[1743384981091,2.84461104,602.27,601.26,0.3326348]
[1743384981283,2.34513758,602.26,601.26,0.3326348]
[1743384981485,2.34513758,602.25,601.26,0.3326348]
[1743384981688,2.34513758,602.24,601.26,0.3326348]
[1743384981884,2.34513758,602.23,601.26,0.3326348]
[1743384982089,2.34513758,602.22,601.26,0.3326348]
[1743384982286,4.98528754,602.21,601.26,0.3326348]
[1743384982490,2.65051974,602.2,601.26,0.3326348]
[1743384982687,1.74814979,602.19,601.26,0.3326348]
[1743384982992,1.60303269,602.17,601.26,0.3326348]
[1743384983186,0.30538216,602.16,601.26,0.3326348]
[1743384983385,8.19885746,602.17,601.26,0.3326348]
[1743384983586,6.59582477,602.16,601.26,0.3326348]
[1743384983795,4.0181784,602.15,601.26,0.3326348]
[1743384983992,3.75121373,602.14,600.3,2.5510302]
[1743384984188,2.67729176,602.13,600.32,0.33315565]
[1743384984392,2.34513758,602.12,600.32,0.33315565]
[1743384984592,6.0973756,602.12,600.32,0.33315565]
[1743384984888,0.90236995,602.11,600.32,0.33315565]
[1743384985093,2.34440064,602.11,600.32,0.33315565]
[1743384985393,3.05809435,602.11,600.32,0.33315565]
[1743384985589,9.65222294,602.11,600.32,0.33315565]
[1743384985789,6.59412859,602.1,600.32,0.33315565]
[1743384985990,2.84291486,602.09,600.32,0.33315565]
[1743384986188,6.09545956,602.09,600.32,0.33315565]
[1743384986392,2.34424583,602.08,600.32,0.33315565]
[1743384986589,0.90163301,602.08,600.32,0.33315565]
[1743384986794,3.95972736,602.08,600.32,0.33315565]
[1743384986997,6.08454525,602.07,600.32,0.33315565]
[1743384987195,5.39830406,602.06,600.32,0.33315565]
[1743384987394,2.34020971,602.05,600.32,0.33315565]
[1743384987988,2.34020971,602.11,600.32,0.33315565]
[1743384988389,1.44073752,602.11,600.32,0.33315565]
[1743384988588,3.05809435,602.11,600.32,0.33315565]
[1743384988997,2.34020971,602.11,600.32,0.33315565]
[1743384989294,0.33215418,602.13,600.32,0.33315565]
[1743384989495,5.73131588,602.13,600.32,0.33315565]
[1743384989694,2.34020971,602.12,600.32,0.33315565]
[1743384989889,6.08267688,602.12,600.32,0.33315565]
[1743384990094,2.34020971,602.11,600.32,0.33315565]
[1743384990396,3.05809435,602.11,600.33,0.28935739]
[1743384990590,5.39830406,602.11,600.35,0.333139]
[1743384990793,2.34020971,602.1,600.35,0.333139]
[1743384990992,2.33967186,602.1,600.35,0.333139]
[1743384991196,3.51586199,602.11,600.35,0.333139]
[1743384991393,2.33967186,602.11,600.35,0.333139]
[1743384991694,0.33215418,602.13,600.35,0.333139]
[1743384992095,2.33967186,602.2,600.35,0.333139]
[1743384995490,0.90012753,602.2,600.35,0.333139]
[1743384995689,5.39641878,602.21,600.35,0.333139]
[1743384995892,2.33832443,602.2,600.35,0.333139]
[1743384996090,1.4381969,602.2,600.35,0.333139]
[1743384996293,1.17619013,602.21,600.35,0.333139]
[1743384996797,1.17619013,602.37,600.35,0.333139]
[1743384997298,2.33778751,602.36,600.35,0.333139]
[1743384997494,4.63871751,602.35,600.35,0.333139]
[1743384997700,2.33923627,602.34,600.35,0.333139]
[1743384997900,3.73901125,602.33,600.35,0.333139]
[1743384998098,2.33923627,602.32,600.35,0.333139]
[1743384998295,3.73901125,602.31,600.35,0.333139]
[1743384998494,2.33923627,602.3,600.35,0.333139]
[1743384998800,1.43808125,602.29,600.35,0.333139]
[1743384998994,4.49242337,602.29,600.35,0.333139]
[1743384999194,2.33771462,602.28,600.35,0.333139]
[1743385000000,3.05441501,602.27,600.35,0.333139]
[1743385000300,2.33771462,602.26,600.35,0.333139]
[1743385000497,3.73854069,602.25,600.35,0.333139]
[1743385000701,0.30533987,602.21,600.35,0.333139]
[1743385001199,3.88863673,602.22,600.35,0.333139]
[1743385001402,1.74335845,602.21,600.35,0.333139]
[1743385001604,2.33763673,602.21,600.35,0.333139]
[1743385001803,4.49242337,602.21,600.35,0.333139]
[1743385002003,0.89962837,602.2,600.35,0.333139]
[1743385002201,2.33763673,602.2,600.35,0.333139]
[1743385002597,5.39324071,602.21,600.35,0.333139]
[1743385002803,4.04370273,602.2,600.35,0.333139]
[1743385003003,2.3388257,602.19,600.35,0.333139]
[1743385003198,0.30538619,602.18,600.35,0.333139]
[1743385003802,1.20501456,602.18,600.35,0.333139]
[1743385004103,0.30538619,602.17,600.35,0.333139]
[1743385004303,2.64421189,602.17,600.35,0.333139]
[1743385004604,6.07714224,602.17,600.35,0.333139]
[1743385004803,2.3388257,602.16,600.35,0.333139]
[1743385005005,3.95404338,602.16,600.35,0.333139]
[1743385005302,3.73831654,602.15,600.35,0.333139]
[1743385005504,6.07714224,602.15,600.35,0.333139]
[1743385005705,3.51501583,602.14,600.35,0.333139]
[1743385005901,7.75194631,602.14,600.35,0.333139]
[1743385006102,6.07714224,602.13,600.35,0.333139]
[1743385006302,6.07714224,602.12,600.35,0.333139]
[1743385006504,6.07714224,602.11,600.35,0.333139]
[1743385006800,2.3388257,602.1,600.35,0.333139]
[1743385007006,3.95341194,602.1,600.35,0.333139]
[1743385007211,3.73831654,602.09,600.35,0.333139]
[1743385007407,6.07570856,602.09,600.35,0.333139]
[1743385007605,3.51358215,602.08,600.35,0.333139]
[1743385007806,7.25189869,602.08,600.35,0.333139]
[1743385008005,6.07570856,602.07,600.35,0.333139]
[1743385008207,2.33739202,602.06,600.35,0.333139]
[1743385008406,0.89899693,602.06,600.35,0.333139]
[1743385008807,3.05441501,602.08,600.35,0.333139]
[1743385009111,3.05441501,602.06,600.35,0.333139]
[1743385009813,1.17619013,602.05,600.35,0.333139]
[1743385010216,1.17619013,602.04,600.35,0.333139]
[1743385011112,1.17619013,602.03,600.35,0.333139]
[1743385011514,1.17619013,602.02,600.35,0.333139]
[1743385011715,3.51178955,602.02,600.35,0.333139]
[1743385012015,2.33559942,602.02,600.35,0.333139]
[1743385012211,0.28944162,602.13,600.35,0.333139]
[1743385012814,1.17619013,602.12,600.35,0.333139]
[1743385013416,1.17619013,602.11,600.35,0.333139]
[1743385014116,1.17619013,602.1,600.35,0.333139]
[1743385014309,7.74731656,602.1,600.35,0.333139]
[1743385014509,9.6255415,602.09,600.35,0.333139]
[1743385014717,6.57112649,602.08,600.35,0.333139]
[1743385014912,2.33710153,602.07,600.35,0.333139]
[1743385015117,0.89890418,602.07,600.35,0.333139]
[1743385015313,1.17619013,602.06,600.35,0.333139]
[1743385015710,7.24865663,602.06,600.35,0.333139]
[1743385015917,6.0724665,602.05,600.35,0.333139]
[1743385016214,7.4914665,602.04,600.35,0.333139]
[1743385016417,6.0724665,602.03,600.35,0.333139]
[1743385016617,6.0724665,602.02,600.35,0.333139]
[1743385016920,6.0724665,602.01,600.35,0.333139]
[1743385017218,6.57124854,602.0,600.35,0.333139]
[1743385017411,6.57124854,601.99,600.35,0.333139]
[1743385017612,6.57124854,601.98,600.35,0.333139]
[1743385017819,6.57124854,601.97,600.35,0.333139]
[1743385018018,0.98624936,601.89,600.35,0.333139]
[1743385018224,2.6299983,601.85,600.35,0.333139]
[1743385018521,3.6273975,601.84,600.35,0.333139]
[1743385018718,0.30554872,601.83,600.35,0.333139]